fUSD/lending_fUSD_20240526
["ID","MTS","AMOUNT","RATE_DAILY","PERIOD"]
[327974832,1716732677753,-500.0,0.00029041,4]
[327974833,1716732677762,-1079.94,0.00029041,4]
[327974834,1716732677772,-879.76,0.00029041,4]
[327974835,1716732677781,-1841.81,0.00029041,4]
[327974836,1716732677791,-500.0,0.00029041,4]
[327974837,1716732677801,-625.43,0.00029041,4]
[327974838,1716732677809,-1077.58,0.00029041,4]
[327974839,1716732677819,-500.0,0.00029041,4]
[327974840,1716732677827,-710.46,0.00029041,4]
[327974841,1716732677837,-647.72,0.00029041,4]
[327974842,1716732677846,-568.85,0.00029041,4]
[327974843,1716732677855,-678.18,0.00029041,4]
[327974844,1716732677865,-869.84,0.00029041,4]
[327974845,1716732677874,-500.0,0.00029041,4]
[327974846,1716732677883,-500.0,0.00029041,4]
[327974847,1716732677893,-717.42,0.00029041,4]
[327974848,1716732677903,-576.0,0.00029041,4]
[327974849,1716732677913,-1137.45,0.00029041,4]
[327974850,1716732677923,-500.0,0.00029041,4]
[327974851,1716732677933,-500.0,0.00029041,4]
[327974852,1716732677942,-500.0,0.00029041,4]
[327974853,1716732677952,-500.0,0.00029041,4]
[327974854,1716732677961,-1101.55,0.00029041,4]
[327974855,1716732677970,-623.77,0.00029041,4]
[327974856,1716732677980,-504.89,0.00029041,4]
[327974857,1716732677990,-570.33,0.00029041,4]
[327974858,1716732678000,-853.64,0.00029041,4]
[327974859,1716732678009,-398.27901626,0.00029041,4]
[327974860,1716732678019,-1592.22,0.00029041,4]
[327974861,1716732678028,-1027.97,0.00029041,4]
[327974862,1716732678038,-1044.37,0.00029041,4]
[327974863,1716732678047,-500.0,0.00029041,4]
[327974864,1716732678056,-500.0,0.00029041,4]
[327974865,1716732678067,-500.0,0.00029041,4]
[327974866,1716732678076,-1313.69,0.00029041,4]
[327974867,1716732678086,-624.18,0.00029041,4]
[327974868,1716732678096,-1190.26,0.00029041,4]
[327974869,1716732678105,-4137.91,0.00029041,4]
[327974870,1716732678115,-1036.79,0.00029041,4]
[327974871,1716732678124,-500.0,0.00029041,4]
[327974872,1716732678134,-500.0,0.00029041,4]
[327974873,1716732678145,-850.51,0.00029041,4]
[327974874,1716732678156,-916.61,0.00029041,4]
[327974875,1716732678166,-500.0,0.00029041,4]
[327974876,1716732678177,-1474.98,0.00029041,4]
[327974877,1716732678186,-707.12,0.00029041,4]
[327974878,1716732678196,-500.0,0.00029041,4]
[327974879,1716732678205,-2412.83,0.00029041,4]
[327974880,1716732678215,-500.0,0.00029041,4]
[327974881,1716732678225,-500.0,0.00029041,4]
[327974882,1716732678236,-500.0,0.00029041,4]
[327974883,1716732678246,-687.58,0.00029041,4]
[327974884,1716732678255,-1038.84,0.00029041,4]
[327974885,1716732678265,-500.0,0.00029041,2]
[327974886,1716732678274,-500.0,0.00029041,4]
[327974887,1716732678284,-500.0,0.00029041,4]
[327974888,1716732678293,-928.91,0.00029041,4]
[327974889,1716732678303,-654.73,0.00029041,4]
[327974890,1716732678312,-500.0,0.00029041,4]
[327974891,1716732678321,-592.19,0.00029041,4]
[327974892,1716732678331,-502.52,0.00029041,4]
[327974893,1716732678340,-500.0,0.00029041,4]
[327974894,1716732678354,-500.0,0.00029041,4]
[327974895,1716732678364,-500.0,0.00029041,4]
[327974896,1716732678374,-1244.5,0.00029041,4]
[327974897,1716732678383,-586.69,0.00029041,4]
[327974898,1716732678395,-901.87,0.00029041,4]
[327974899,1716732678404,-827.03,0.00029041,4]
[327974900,1716732678414,-793.2,0.00029041,4]
[327974901,1716732678424,-501.48,0.00029041,4]
[327974902,1716732678433,-709.61,0.00029041,4]
[327974903,1716732678443,-152.35228072,0.00029073,2]
[327974904,1716732678452,-200.0,0.00029081,2]
[327974905,1716732678462,-500.0,0.00029081,2]
[327974906,1716732678474,-200.0,0.00029081,2]
[327974907,1716732678484,-551.197367,0.00029106,2]
[327974908,1716732678494,-420.524747,0.00029106,2]
[327974909,1716732678504,-186.015969,0.00029106,2]
[327974910,1716732678513,-236.330708,0.00029106,2]
[327974911,1716732678523,-168.886399,0.00029106,2]
[327974912,1716732678533,-157.86209062,0.00029155,2]
[327974913,1716732678546,-152.35228072,0.00029158,2]
[327974914,1716732678555,-164.26526272,0.0002918,2]
[327974915,1716732678565,-154.4578976,0.00029296,2]
[327974916,1716732678574,-150.0,0.000293,2]
[327974917,1716732678583,-1011.76,0.000293,2]
[327974918,1716732678594,-307.32,0.000293,2]
[327974919,1716732678604,-150.0,0.000293,6]
[327974920,1716732678613,-153.31773316,0.00029306,2]
[327974921,1716732678623,-300.0,0.00029313,2]
[327974922,1716732678633,-213.40041339,0.00029313,2]
[327974923,1716732678643,-232.65078826,0.00029313,7]
[327974924,1716732678652,-500.0,0.00029315,4]
[327974925,1716732678662,-500.0,0.00029315,4]
[327974926,1716732678673,-500.0,0.00029315,4]
[327974927,1716732678682,-500.0,0.00029315,4]
[327974928,1716732678692,-500.0,0.00029315,4]
[327974929,1716732678706,-867.51,0.00029315,4]
[327974930,1716732678717,-500.0,0.00029315,4]
[327974931,1716732678740,-500.0,0.00029315,4]
[327974932,1716732678763,-151.0,0.00029315,7]
[327974933,1716732678786,-613.37,0.00029315,4]
[327974934,1716732678809,-500.0,0.00029315,4]
[327974935,1716732678832,-500.0,0.00029315,4]
[327974936,1716732678854,-689.25,0.00029315,4]
[327974937,1716732678875,-912.17,0.00029315,4]
[327974938,1716732678893,-519.97735578,0.00029315,4]
[327974939,1716732678904,-577.1,0.00029315,4]
[327974940,1716732678914,-500.0,0.00029315,4]
[327974941,1716732678927,-500.0,0.00029315,4]
[327974942,1716732678936,-500.0,0.00029315,4]
[327974943,1716732678945,-500.0,0.00029315,4]
[327974944,1716732678954,-3083.08,0.00029315,4]
[327974945,1716732678963,-500.0,0.00029315,4]
[327974946,1716732678972,-500.0,0.00029315,4]
[327974947,1716732678982,-691.79,0.00029315,4]
[327974948,1716732678991,-500.0,0.00029315,4]
[327974949,1716732679001,-500.0,0.00029315,4]
[327974950,1716732679067,-1003.57,0.00029315,4]
[327974951,1716732679078,-702.93,0.00029315,4]
[327974952,1716732679088,-500.0,0.00029315,4]
[327974953,1716732679097,-500.0,0.00029315,4]
[327974954,1716732679106,-500.0,0.00029315,4]
[327974955,1716732679116,-900.58,0.00029315,4]
[327974956,1716732679126,-500.0,0.00029315,4]
[327974957,1716732679135,-500.0,0.00029315,4]
[327974958,1716732679144,-891.34,0.00029315,4]
[327974959,1716732679153,-838.16,0.00029315,2]
[327974960,1716732679162,-500.0,0.00029315,4]
[327974961,1716732679173,-500.0,0.00029315,4]
[327974962,1716732679182,-624.79155465,0.00029315,2]
[327974963,1716732679191,-576.75,0.00029315,4]
[327974964,1716732679200,-615.98,0.00029315,4]
[327974965,1716732679210,-767.17,0.00029315,4]
[327974966,1716732679219,-500.0,0.00029315,4]
[327974967,1716732679228,-500.0,0.00029315,4]
[327974968,1716732679239,-633.88,0.00029315,4]
[327974969,1716732679248,-500.0,0.00029315,4]
[327974970,1716732679257,-758.6,0.00029315,4]
[327974971,1716732679267,-1363.1,0.00029315,4]
[327974972,1716732679276,-500.0,0.00029315,4]
[327974973,1716732679287,-432.44,0.00029315,4]
[327974974,1716732679298,-500.0,0.00029315,4]
[327974975,1716732679308,-535.29,0.00029315,4]
[327974976,1716732679317,-500.0,0.00029315,4]
[327974977,1716732679327,-500.0,0.00029315,4]
[327974978,1716732679336,-500.0,0.00029315,4]
[327974979,1716732679346,-596.76,0.00029315,4]
[327974980,1716732679355,-500.0,0.00029315,4]
[327974981,1716732679365,-500.0,0.00029315,4]
[327974982,1716732679374,-151.0,0.00029315,7]
[327974983,1716732679383,-500.0,0.00029315,4]
[327974984,1716732679392,-500.0,0.00029315,4]
[327974985,1716732679402,-500.0,0.00029315,4]
[327974986,1716732679411,-500.0,0.00029315,4]
[327974987,1716732679420,-500.0,0.00029315,4]
[327974988,1716732679431,-500.0,0.00029315,4]
[327974989,1716732679441,-500.0,0.00029315,4]
[327974990,1716732679450,-500.0,0.00029315,4]
[327974991,1716732679462,-638.58,0.00029315,4]
[327974992,1716732679474,-500.0,0.00029315,4]
[327974993,1716732679483,-500.0,0.00029315,4]
[327974994,1716732679493,-500.0,0.00029315,4]
[327974995,1716732679503,-623.47959429,0.00029315,4]
[327974996,1716732679514,-813.06,0.00029315,4]
[327974997,1716732679523,-676.35,0.00029315,4]
[327974998,1716732679532,-500.0,0.00029315,4]
[327974999,1716732679543,-1206.79,0.00029315,4]
[327975000,1716732679553,-500.0,0.00029315,4]
[327975001,1716732679563,-758.9,0.00029315,4]
[327975002,1716732679575,-500.0,0.00029315,4]
[327975003,1716732679584,-500.0,0.00029315,4]
[327975004,1716732679594,-500.0,0.00029315,4]
[327975005,1716732679603,-500.0,0.00029315,4]
[327975006,1716732679612,-500.0,0.00029315,4]
[327975007,1716732679621,-544.35,0.00029315,2]
[327975008,1716732679630,-500.0,0.00029315,4]
[327975009,1716732679639,-500.0,0.00029315,4]
[327975010,1716732679648,-500.0,0.00029315,4]
[327975011,1716732679658,-500.0,0.00029315,4]
[327975012,1716732679667,-500.0,0.00029315,4]
[327975013,1716732679677,-500.0,0.00029315,4]
[327975014,1716732679686,-500.0,0.00029315,4]
[327975015,1716732679695,-500.0,0.00029315,4]
[327975016,1716732679705,-607.01,0.00029315,4]
[327975017,1716732679715,-869.48,0.00029315,4]
[327975018,1716732679724,-500.0,0.00029315,4]
[327975019,1716732679734,-500.0,0.00029315,4]
[327975020,1716732679743,-500.0,0.00029315,4]
[327975021,1716732679753,-598.19,0.00029315,4]
[327975022,1716732679763,-500.0,0.00029315,4]
[327975023,1716732679772,-501.39,0.00029315,4]
[327975024,1716732679782,-532.18662566,0.00029315,4]
[327975025,1716732679792,-565.06,0.00029315,4]
[327975026,1716732679801,-500.0,0.00029315,4]
[327975027,1716732679810,-536.08,0.00029315,4]
[327975028,1716732679819,-500.0,0.00029315,4]
[327975029,1716732679829,-500.0,0.00029315,4]
[327975030,1716732679838,-323.24,0.00029315,4]
[327975031,1716732679847,-500.0,0.00029315,4]
[327975032,1716732679857,-500.0,0.00029315,4]
[327975033,1716732679869,-500.0,0.00029315,4]
[327975034,1716732679879,-500.0,0.00029315,4]
[327975035,1716732679890,-453.22946676,0.00029315,4]
[327975036,1716732679899,-500.0,0.00029315,4]
[327975037,1716732679908,-500.0,0.00029315,4]
[327975038,1716732679919,-500.0,0.00029315,4]
[327975039,1716732679931,-500.0,0.00029315,4]
[327975040,1716732679940,-500.0,0.00029315,4]
[327975041,1716732679949,-500.0,0.00029315,4]
[327975042,1716732679958,-500.0,0.00029315,4]
[327975043,1716732679968,-500.0,0.00029315,4]
[327975044,1716732679977,-575.01,0.00029315,4]
[327975045,1716732679988,-500.0,0.00029315,4]
[327975046,1716732679997,-500.0,0.00029315,4]
[327975047,1716732680007,-500.0,0.00029315,4]
[327975048,1716732680018,-500.0,0.00029315,4]
[327975049,1716732680028,-461.40932658,0.00029315,4]
[327975050,1716732680039,-179.19,0.00029315,4]
[327975051,1716732680048,-664.28,0.00029315,4]
[327975052,1716732680056,-193.036136,0.00029315,7]
[327975053,1716732680066,-193.036136,0.00029315,7]
[327975054,1716732680075,-500.0,0.00029315,4]
[327975055,1716732680084,-500.0,0.00029315,4]
[327975056,1716732680093,-500.0,0.00029315,4]
[327975057,1716732680102,-500.0,0.00029315,4]
[327975058,1716732680111,-1420.49,0.00029315,4]
[327975059,1716732680120,-500.0,0.00029315,4]
[327975060,1716732680130,-500.0,0.00029315,4]
[327975061,1716732680139,-500.0,0.00029315,4]
[327975062,1716732680150,-911.95,0.00029315,4]
[327975063,1716732680160,-532.91,0.00029315,4]
[327975064,1716732680169,-876.64,0.00029315,4]
[327975065,1716732680179,-845.02,0.00029315,4]
[327975066,1716732680188,-500.0,0.00029315,4]
[327975067,1716732680197,-1217.15,0.00029315,4]
[327975068,1716732680207,-500.0,0.00029315,4]
[327975069,1716732680216,-500.0,0.00029315,4]
[327975070,1716732680225,-456.55707589,0.00029315,4]
[327975071,1716732680234,-500.0,0.00029315,4]
[327975072,1716732680243,-500.0,0.00029315,4]
[327975073,1716732680253,-1573.33,0.00029315,4]
[327975074,1716732680262,-500.0,0.00029315,4]
[327975075,1716732680271,-1943.35,0.00029315,4]
[327975076,1716732680280,-647.0,0.00029315,4]
[327975077,1716732680290,-500.0,0.00029315,4]
[327975078,1716732680299,-827.18,0.00029315,4]
[327975079,1716732680309,-525.9,0.00029315,4]
[327975080,1716732680318,-1647.19,0.00029315,4]
[327975081,1716732680328,-812.79,0.00029315,4]
[327975082,1716732680337,-656.92,0.00029315,4]
[327975083,1716732680346,-1479.16,0.00029315,4]
[327975084,1716732680356,-500.0,0.00029315,4]
[327975085,1716732680365,-859.25,0.00029315,4]
[327975086,1716732680374,-500.0,0.00029315,4]
[327975087,1716732680384,-705.7,0.00029315,4]
[327975088,1716732680394,-500.0,0.00029315,4]
[327975089,1716732680403,-524.26,0.00029315,4]
[327975090,1716732680413,-852.83,0.00029315,4]
[327975091,1716732680423,-792.18,0.00029315,4]
[327975092,1716732680432,-9047.47,0.00029315,4]
[327975093,1716732680442,-2563.75,0.00029315,4]
[327975094,1716732680451,-500.0,0.00029315,4]
[327975095,1716732680463,-500.0,0.00029315,4]
[327975096,1716732680474,-543.61,0.00029315,4]
[327975097,1716732680484,-657.54,0.00029315,4]
[327975098,1716732680493,-937.7,0.00029315,4]
[327975099,1716732680503,-1533.52,0.00029315,4]
[327975100,1716732680513,-782.0,0.00029315,4]
[327975101,1716732680522,-1870.6,0.00029315,4]
[327975102,1716732680532,-500.0,0.00029315,4]
[327975103,1716732680544,-523.58,0.00029315,4]
[327975104,1716732680553,-500.0,0.00029315,4]
[327975105,1716732680563,-611.87,0.00029315,4]
[327975106,1716732680573,-662.47,0.00029315,4]
[327975107,1716732680582,-709.98,0.00029315,4]
[327975108,1716732680591,-500.0,0.00029315,4]
[327975109,1716732680601,-500.0,0.00029315,4]
[327975110,1716732680610,-739.81,0.00029315,4]
[327975111,1716732680620,-6199.76,0.00029315,4]
[327975112,1716732680629,-500.0,0.00029315,4]
[327975113,1716732680646,-724.86,0.00029315,4]
[327975114,1716732680667,-1320.63,0.00029315,4]
[327975115,1716732680687,-500.0,0.00029315,4]
[327975116,1716732680708,-500.0,0.00029315,4]
[327975117,1716732680733,-500.0,0.00029315,4]
[327975118,1716732680758,-852.95,0.00029315,4]
[327975119,1716732680780,-2564.82,0.00029315,4]
[327975120,1716732680805,-818.52,0.00029315,4]
[327975121,1716732680816,-2538.12,0.00029315,4]
[327975122,1716732680826,-571.73,0.00029315,4]
[327975123,1716732680835,-500.0,0.00029315,4]
[327975124,1716732680844,-598.56,0.00029315,4]
[327975125,1716732680853,-500.0,0.00029315,4]
[327975126,1716732680863,-2937.07,0.00029315,4]
[327975127,1716732680873,-1041.17,0.00029315,4]
[327975128,1716732680882,-500.0,0.00029315,4]
[327975129,1716732680892,-500.0,0.00029315,4]
[327975130,1716732680902,-656.51,0.00029315,4]
[327975131,1716732680912,-500.0,0.00029315,4]
[327975132,1716732680923,-1310.5,0.00029315,4]
[327975133,1716732680932,-500.0,0.00029315,4]
[327975134,1716732680941,-552.73,0.00029315,4]
[327975135,1716732680952,-967.98,0.00029315,4]
[327975136,1716732680962,-500.0,0.00029315,4]
[327975137,1716732680971,-1148.48,0.00029315,4]
[327975138,1716732680980,-795.96,0.00029315,4]
[327975139,1716732680990,-678.18,0.00029315,4]
[327975140,1716732680999,-500.0,0.00029315,4]
[327975141,1716732681008,-576.35,0.00029315,4]
[327975142,1716732681019,-500.0,0.00029315,4]
[327975143,1716732681028,-585.71,0.00029315,4]
[327975144,1716732681038,-606.32,0.00029315,4]
[327975145,1716732681048,-1027.88,0.00029315,4]
[327975146,1716732681058,-2390.71,0.00029315,4]
[327975147,1716732681067,-500.0,0.00029315,4]
[327975148,1716732681076,-720.94,0.00029315,4]
[327975149,1716732681086,-884.01,0.00029315,4]
[327975150,1716732681096,-371.37065,0.00029315,7]
[327975151,1716732681106,-571.26,0.00029315,4]
[327975152,1716732681116,-856.1063,0.00029315,7]
[327975153,1716732681126,-1408.04,0.00029315,4]
[327975154,1716732681136,-371.37065,0.00029315,7]
[327975155,1716732681146,-500.0,0.00029315,4]
[327975156,1716732681156,-500.0,0.00029315,4]
[327975157,1716732681165,-500.0,0.00029315,4]
[327975158,1716732681175,-500.0,0.00029315,4]
[327975159,1716732681185,-856.1063,0.00029315,7]
[327975160,1716732681197,-1268.26,0.00029315,4]
[327975161,1716732681207,-1085.42,0.00029315,4]
[327975162,1716732681216,-8694.34,0.00029315,4]
[327975163,1716732681226,-500.0,0.00029315,4]
[327975164,1716732681235,-1268.05,0.00029315,4]
[327975165,1716732681244,-1448.06,0.00029315,4]
[327975166,1716732681253,-972.62,0.00029315,4]
[327975167,1716732681263,-3904.28,0.00029315,4]
[327975168,1716732681272,-573.16,0.00029315,4]
[327975169,1716732681282,-914.87,0.00029315,4]
[327975170,1716732681291,-1089.59,0.00029315,4]
[327975171,1716732681300,-378.19960971,0.00029315,4]
[327975172,1716732681309,-500.0,0.00029315,4]
[327975173,1716732681319,-885.34,0.00029315,4]
[327975174,1716732681328,-499.99199999,0.00029315,4]
[327975175,1716732681338,-591.51,0.00029315,4]
[327975176,1716732681347,-500.0,0.00029315,4]
[327975177,1716732681357,-1079.94,0.00029315,4]
[327975178,1716732681366,-879.76,0.00029315,4]
[327975179,1716732681375,-1841.81,0.00029315,4]
[327975180,1716732681384,-500.0,0.00029315,4]
[327975181,1716732681393,-625.43,0.00029315,4]
[327975182,1716732681403,-1077.58,0.00029315,4]
[327975183,1716732681413,-500.0,0.00029315,4]
[327975184,1716732681424,-710.46,0.00029315,4]
[327975185,1716732681433,-647.72,0.00029315,4]
[327975186,1716732681443,-568.85,0.00029315,4]
[327975187,1716732681452,-678.18,0.00029315,4]
[327975188,1716732681462,-869.84,0.00029315,4]
[327975189,1716732681476,-500.0,0.00029315,4]
[327975190,1716732681486,-500.0,0.00029315,4]
[327975191,1716732681494,-717.42,0.00029315,4]
[327975192,1716732681504,-576.0,0.00029315,4]
[327975193,1716732681516,-1137.45,0.00029315,4]
[327975194,1716732681525,-500.0,0.00029315,4]
[327975195,1716732681535,-500.0,0.00029315,4]
[327975196,1716732681544,-500.0,0.00029315,4]
[327975197,1716732681554,-500.0,0.00029315,4]
[327975198,1716732681564,-1101.55,0.00029315,4]
[327975199,1716732681574,-623.77,0.00029315,4]
[327975200,1716732681583,-504.89,0.00029315,4]
[327975201,1716732681591,-570.33,0.00029315,4]
[327975202,1716732681600,-853.64,0.00029315,4]
[327975203,1716732681610,-1592.22,0.00029315,4]
[327975204,1716732681619,-1027.97,0.00029315,4]
[327975205,1716732681628,-1044.37,0.00029315,4]
[327975206,1716732681638,-500.0,0.00029315,4]
[327975207,1716732681647,-500.0,0.00029315,4]
[327975208,1716732681657,-500.0,0.00029315,4]
[327975209,1716732681667,-1313.69,0.00029315,4]
[327975210,1716732681678,-624.18,0.00029315,4]
[327975211,1716732681688,-1190.26,0.00029315,4]
[327975212,1716732681696,-4137.91,0.00029315,4]
[327975213,1716732681707,-1036.79,0.00029315,4]
[327975214,1716732681716,-500.0,0.00029315,4]
[327975215,1716732681727,-500.0,0.00029315,4]
[327975216,1716732681737,-850.51,0.00029315,4]
[327975217,1716732681747,-500.0,0.00029315,4]
[327975218,1716732681756,-916.61,0.00029315,4]
[327975219,1716732681767,-1474.98,0.00029315,4]
[327975220,1716732681777,-707.12,0.00029315,4]
[327975221,1716732681786,-500.0,0.00029315,4]
[327975222,1716732681796,-2412.83,0.00029315,4]
[327975223,1716732681816,-316.80722957,0.00029315,4]
[327975224,1716732681828,-500.0,0.00029315,4]
[327975225,1716732681839,-500.0,0.00029315,4]
[327975226,1716732681848,-687.58,0.00029315,4]
[327975227,1716732681858,-1038.84,0.00029315,4]
[327975228,1716732681868,-500.0,0.00029315,2]
[327975229,1716732681878,-500.0,0.00029315,4]
[327975230,1716732681887,-500.0,0.00029315,4]
[327975231,1716732681896,-928.91,0.00029315,4]
[327975232,1716732681907,-654.73,0.00029315,4]
[327975233,1716732681916,-500.0,0.00029315,4]
[327975234,1716732681927,-592.19,0.00029315,4]
[327975235,1716732681936,-502.52,0.00029315,4]
[327975236,1716732681945,-500.0,0.00029315,4]
[327975237,1716732681955,-500.0,0.00029315,4]
[327975238,1716732681965,-500.0,0.00029315,4]
[327975239,1716732681975,-1244.5,0.00029315,4]
[327975240,1716732681985,-586.69,0.00029315,4]
[327975241,1716732681995,-901.87,0.00029315,4]
[327975242,1716732682004,-827.03,0.00029315,4]
[327975243,1716732682014,-793.2,0.00029315,4]
[327975244,1716732682024,-501.48,0.00029315,4]
[327975245,1716732682034,-709.61,0.00029315,4]
[327975246,1716732682044,-500.0,0.00029342,2]
[327975247,1716732682053,-500.0,0.00029342,2]
[327975248,1716732682063,-500.0,0.00029342,2]
[327975249,1716732682073,-500.0,0.00029342,2]
[327975250,1716732682083,-500.0,0.00029342,2]
[327975251,1716732682093,-500.0,0.00029342,2]
[327975252,1716732682103,-152.35228072,0.00029383,2]
[327975253,1716732682112,-2500.0,0.00029429,2]
[327975254,1716732682121,-4815.0,0.00029463,7]
[327975255,1716732682130,-214.50319524,0.000295,3]
[327975256,1716732682140,-546.83,0.00029522,2]
[327975257,1716732682149,-156.1736614,0.00029527,2]
[327975258,1716732682158,-500.0,0.00029589,4]
[327975259,1716732682168,-500.0,0.00029589,4]
[327975260,1716732682179,-500.0,0.00029589,4]
[327975261,1716732682187,-500.0,0.00029589,4]
[327975262,1716732682196,-500.0,0.00029589,4]
[327975263,1716732682206,-867.51,0.00029589,4]
[327975264,1716732682215,-500.0,0.00029589,4]
[327975265,1716732682225,-500.0,0.00029589,4]
[327975266,1716732682234,-151.0,0.00029589,7]
[327975267,1716732682244,-613.37,0.00029589,4]
[327975268,1716732682253,-500.0,0.00029589,4]
[327975269,1716732682263,-500.0,0.00029589,4]
[327975270,1716732682272,-689.25,0.00029589,4]
[327975271,1716732682282,-912.17,0.00029589,4]
[327975272,1716732682292,-500.0,0.00029589,4]
[327975273,1716732682302,-500.0,0.00029589,4]
[327975274,1716732682311,-577.1,0.00029589,4]
[327975275,1716732682321,-500.0,0.00029589,4]
[327975276,1716732682330,-500.0,0.00029589,4]
[327975277,1716732682339,-3083.08,0.00029589,4]
[327975278,1716732682349,-500.0,0.00029589,4]
[327975279,1716732682359,-500.0,0.00029589,4]
[327975280,1716732682368,-691.79,0.00029589,4]
[327975281,1716732682378,-500.0,0.00029589,4]
[327975282,1716732682387,-500.0,0.00029589,4]
[327975283,1716732682397,-1003.57,0.00029589,4]
[327975284,1716732682408,-702.93,0.00029589,4]
[327975285,1716732682417,-411.10095715,0.00029589,4]
[327975286,1716732682429,-500.0,0.00029589,4]
[327975287,1716732682438,-500.0,0.00029589,4]
[327975288,1716732682448,-900.58,0.00029589,4]
[327975289,1716732682460,-500.0,0.00029589,4]
[327975290,1716732682475,-500.0,0.00029589,4]
[327975291,1716732682486,-891.34,0.00029589,4]
[327975292,1716732682496,-838.16,0.00029589,2]
[327975293,1716732682506,-500.0,0.00029589,4]
[327975294,1716732682518,-500.0,0.00029589,4]
[327975295,1716732682528,-576.75,0.00029589,4]
[327975296,1716732682541,-615.98,0.00029589,4]
[327975297,1716732682551,-500.0,0.00029589,4]
[327975298,1716732682561,-767.17,0.00029589,4]
[327975299,1716732682572,-488.46794952,0.00029589,4]
[327975300,1716732682582,-633.88,0.00029589,4]
[327975301,1716732682592,-500.0,0.00029589,4]
[327975302,1716732682603,-758.6,0.00029589,4]
[327975303,1716732682613,-1363.1,0.00029589,4]
[327975304,1716732682623,-500.0,0.00029589,4]
[327975305,1716732682633,-500.0,0.00029589,4]
[327975306,1716732682643,-535.29,0.00029589,4]
[327975307,1716732682653,-500.0,0.00029589,4]
[327975308,1716732682663,-500.0,0.00029589,4]
[327975309,1716732682673,-500.0,0.00029589,4]
[327975310,1716732682683,-596.76,0.00029589,4]
[327975311,1716732682693,-500.0,0.00029589,4]
[327975312,1716732682704,-500.0,0.00029589,4]
[327975313,1716732682714,-151.0,0.00029589,7]
[327975314,1716732682724,-500.0,0.00029589,4]
[327975315,1716732682735,-500.0,0.00029589,4]
[327975316,1716732682744,-500.0,0.00029589,4]
[327975317,1716732682755,-500.0,0.00029589,4]
[327975318,1716732682765,-500.0,0.00029589,4]
[327975319,1716732682774,-500.0,0.00029589,4]
[327975320,1716732682784,-500.0,0.00029589,4]
[327975321,1716732682794,-500.0,0.00029589,4]
[327975322,1716732682804,-638.58,0.00029589,4]
[327975323,1716732682814,-500.0,0.00029589,4]
[327975324,1716732682824,-500.0,0.00029589,4]
[327975325,1716732682834,-500.0,0.00029589,4]
[327975326,1716732682844,-813.06,0.00029589,4]
[327975327,1716732682854,-676.35,0.00029589,4]
[327975328,1716732682864,-500.0,0.00029589,4]
[327975329,1716732682874,-1206.79,0.00029589,4]
[327975330,1716732682884,-500.0,0.00029589,4]
[327975331,1716732682894,-758.9,0.00029589,4]